[Event "Live Chess"]
[Site "Chess.com"]
[Date "2023.05.20"]
[Round "-"]
[White "Leonid_Starozhilov"]
[Black "ranvir123"]
[Result "1-0"]
[WhiteElo "2653"]
[BlackElo "905"]
[TimeControl "300"]
[EndTime "11:31:31 PDT"]
[Termination "Leonid_Starozhilov won on time"]

1. e4 {[%clk 0:04:55.2]} 1... e5 {[%clk 0:04:59.2]} 2. Nf3 {[%clk 0:04:54]} 2...
Nc6 {[%clk 0:04:56.7]} 3. d4 {[%clk 0:04:53.3]} 3... exd4 {[%clk 0:04:51]} 4.
Bc4 {[%clk 0:04:52.3]} 4... Nf6 {[%clk 0:04:47.4]} 5. O-O {[%clk 0:04:49.5]}
5... Bc5 {[%clk 0:04:26.2]} 6. e5 {[%clk 0:04:45.3]} 6... Ng4 {[%clk 0:04:13.5]}
7. Bxf7+ {[%clk 0:04:37.1]} 7... Kxf7 {[%clk 0:04:09.3]} 8. Ng5+ {[%clk
0:04:35.6]} 8... Ke8 {[%clk 0:03:59.2]} 9. Qxg4 {[%clk 0:04:34.2]} 9... d5
{[%clk 0:03:45.4]} 10. e6 {[%clk 0:04:26.1]} 10... h6 {[%clk 0:03:40.2]} 11.
Qh5+ {[%clk 0:04:23.3]} 11... Ke7 {[%clk 0:03:24.3]} 12. Qf7+ {[%clk 0:04:11.6]}
12... Kd6 {[%clk 0:03:20.9]} 13. Bf4+ {[%clk 0:04:10.2]} 13... Ne5 {[%clk
0:03:18]} 14. Nf3 {[%clk 0:03:56]} 14... Rf8 {[%clk 0:03:12.7]} 15. Nxe5 {[%clk
0:03:46.4]} 15... Rxf7 {[%clk 0:03:04.8]} 16. Nxf7+ {[%clk 0:03:44.2]} 16... Ke7
{[%clk 0:02:57.2]} 17. Nxd8 {[%clk 0:03:44.1]} 17... Kxd8 {[%clk 0:02:56.1]} 18.
Nd2 {[%clk 0:03:38.5]} 18... Bxe6 {[%clk 0:02:42.8]} 19. Nb3 {[%clk 0:03:36.4]}
19... Bb6 {[%clk 0:02:34.8]} 20. Be5 {[%clk 0:03:26.6]} 20... c5 {[%clk
0:01:41.8]} 21. Rfe1 {[%clk 0:03:22.9]} 21... Kd7 {[%clk 0:01:19.3]} 22. Bxg7
{[%clk 0:03:12.1]} 22... h5 {[%clk 0:01:04.3]} 23. a4 {[%clk 0:03:06.3]} 23...
Rg8 {[%clk 0:00:55.3]} 24. a5 {[%clk 0:03:02.8]} 24... Rxg7 {[%clk 0:00:50.3]}
25. axb6 {[%clk 0:03:00.9]} 25... axb6 {[%clk 0:00:46.2]} 26. Re5 {[%clk
0:02:59.5]} 26... h4 {[%clk 0:00:35.3]} 27. Rae1 {[%clk 0:02:54.2]} 27... Bh3
{[%clk 0:00:25.5]} 28. g3 {[%clk 0:02:47]} 28... hxg3 {[%clk 0:00:22]} 29. hxg3
{[%clk 0:02:44.5]} 29... Kd6 {[%clk 0:00:18.3]} 30. Nd2 {[%clk 0:02:39]} 30...
Rf7 {[%clk 0:00:13.5]} 31. f4 {[%clk 0:02:36.3]} 31... Bf5 {[%clk 0:00:10.3]}
32. c3 {[%clk 0:02:33]} 32... c4 {[%clk 0:00:02.5]} 33. cxd4 {[%clk 0:02:20.7]}
1-0

[Event "Live Chess"]
[Site "Chess.com"]
[Date "2023.05.20"]
[Round "-"]
[White "risinghelios"]
[Black "raminguy"]
[Result "1-0"]
[WhiteElo "1942"]
[BlackElo "1970"]
[TimeControl "300"]
[EndTime "11:31:35 PDT"]
[Termination "risinghelios won by resignation"]

1. e4 {[%clk 0:04:59.3]} 1... e5 {[%clk 0:04:59.4]} 2. Nf3 {[%clk 0:04:58.7]}
2... Nc6 {[%clk 0:04:58.5]} 3. Bc4 {[%clk 0:04:58.5]} 3... Bc5 {[%clk
0:04:56.8]} 4. b4 {[%clk 0:04:57.5]} 4... Bxb4 {[%clk 0:04:55.5]} 5. c3 {[%clk
0:04:57.4]} 5... Ba5 {[%clk 0:04:54.8]} 6. d4 {[%clk 0:04:57.3]} 6... b5 {[%clk
0:04:54.2]} 7. Bxb5 {[%clk 0:04:56.2]} 7... Nxd4 {[%clk 0:04:53.5]} 8. Nxd4
{[%clk 0:04:54.3]} 8... exd4 {[%clk 0:04:53.4]} 9. Qxd4 {[%clk 0:04:54.2]} 9...
Qf6 {[%clk 0:04:52.4]} 10. O-O {[%clk 0:04:52.2]} 10... Qxd4 {[%clk 0:04:51.1]}
11. cxd4 {[%clk 0:04:52.1]} 11... Ne7 {[%clk 0:04:48.7]} 12. Be3 {[%clk
0:04:51]} 12... O-O {[%clk 0:04:47.2]} 13. Bd3 {[%clk 0:04:50.2]} 13... Bb6
{[%clk 0:04:45.3]} 14. Nc3 {[%clk 0:04:49.1]} 14... Bb7 {[%clk 0:04:40.1]} 15.
a4 {[%clk 0:04:47.8]} 15... a5 {[%clk 0:04:38.6]} 16. Rab1 {[%clk 0:04:46.2]}
16... Rab8 {[%clk 0:04:33.6]} 17. Nb5 {[%clk 0:04:45.3]} 17... Rfe8 {[%clk
0:04:28.6]} 18. Nd6 {[%clk 0:04:44.3]} 18... cxd6 {[%clk 0:04:09.2]} 19. Rxb6
{[%clk 0:04:42.4]} 19... Ng6 {[%clk 0:04:08.9]} 20. Rfb1 {[%clk 0:04:40.1]} 1-0

[Event "Live Chess"]
[Site "Chess.com"]
[Date "2023.05.20"]
[Round "-"]
[White "whitedjohn"]
[Black "OceanFloater"]
[Result "1-0"]
[WhiteElo "1670"]
[BlackElo "961"]
[TimeControl "300"]
[EndTime "11:31:40 PDT"]
[Termination "whitedjohn won by checkmate"]

1. e4 {[%clk 0:04:57.2]} 1... c6 {[%clk 0:04:59.3]} 2. d4 {[%clk 0:04:52.2]}
2... d5 {[%clk 0:04:58.7]} 3. exd5 {[%clk 0:04:49.9]} 3... cxd5 {[%clk
0:04:57.3]} 4. Bd3 {[%clk 0:04:46.2]} 4... Nf6 {[%clk 0:04:54.9]} 5. c3 {[%clk
0:04:42.1]} 5... Nc6 {[%clk 0:04:53.4]} 6. Bf4 {[%clk 0:04:40.4]} 6... e6 {[%clk
0:04:47.6]} 7. Nf3 {[%clk 0:04:38.3]} 7... Bd6 {[%clk 0:04:40.4]} 8. Bxd6 {[%clk
0:04:36.7]} 8... Qxd6 {[%clk 0:04:38.5]} 9. O-O {[%clk 0:04:36.3]} 9... Ng4
{[%clk 0:04:35.3]} 10. h3 {[%clk 0:04:31.6]} 10... Nf6 {[%clk 0:04:31.7]} 11.
Re1 {[%clk 0:04:30.1]} 11... O-O {[%clk 0:04:28.3]} 12. Ne5 {[%clk 0:04:28.4]}
12... Nxe5 {[%clk 0:04:26.7]} 13. dxe5 {[%clk 0:04:26.3]} 13... Qd8 {[%clk
0:04:15.8]} 14. exf6 {[%clk 0:04:23.7]} 14... Qxf6 {[%clk 0:04:15.5]} 15. Nd2
{[%clk 0:04:20.4]} 15... e5 {[%clk 0:04:10.3]} 16. Qh5 {[%clk 0:04:13]} 16... h6
{[%clk 0:04:04.5]} 17. Bc2 {[%clk 0:03:54]} 17... e4 {[%clk 0:03:57.2]} 18. Nb3
{[%clk 0:03:48]} 18... Bd7 {[%clk 0:03:46.5]} 19. Nd4 {[%clk 0:03:46.2]} 19...
Kh7 {[%clk 0:03:38.4]} 20. Qxd5 {[%clk 0:03:44.3]} 20... Bxh3 {[%clk 0:03:36.3]}
21. Qxe4+ {[%clk 0:03:38.5]} 21... g6 {[%clk 0:03:31.9]} 22. gxh3 {[%clk
0:03:36.8]} 22... Qg5+ {[%clk 0:03:30.5]} 23. Kh2 {[%clk 0:03:31.5]} 23... Qd2
{[%clk 0:03:21.2]} 24. Re2 {[%clk 0:03:28]} 24... Qg5 {[%clk 0:03:14.3]} 25. Rg1
{[%clk 0:03:25.4]} 25... Qd8 {[%clk 0:03:12.1]} 26. Rxg6 {[%clk 0:03:22.4]}
26... Qd6+ {[%clk 0:03:01.7]} 27. Rg3+ {[%clk 0:03:19.6]} 27... Kh8 {[%clk
0:02:56.1]} 28. Qh7# {[%clk 0:03:17.6]} 1-0

[Event "Live Chess"]
[Site "Chess.com"]
[Date "2023.05.20"]
[Round "-"]
[White "siddu198"]
[Black "AttackingSnowLeopard"]
[Result "0-1"]
[WhiteElo "1626"]
[BlackElo "2053"]
[TimeControl "300"]
[EndTime "11:31:43 PDT"]
[Termination "AttackingSnowLeopard won by resignation"]

1. e4 {[%clk 0:04:58.3]} 1... c6 {[%clk 0:04:58.4]} 2. d4 {[%clk 0:04:57.2]}
2... d5 {[%clk 0:04:58.1]} 3. exd5 {[%clk 0:04:56.4]} 3... cxd5 {[%clk 0:04:57]}
4. Bb5+ {[%clk 0:04:55.9]} 4... Bd7 {[%clk 0:04:55.7]} 5. Nc3 {[%clk 0:04:53.4]}
5... Bxb5 {[%clk 0:04:54.2]} 6. Nxb5 {[%clk 0:04:53]} 6... a6 {[%clk 0:04:51.7]}
7. Nc3 {[%clk 0:04:52.3]} 7... Nc6 {[%clk 0:04:51.4]} 8. Bf4 {[%clk 0:04:51.3]}
8... Nf6 {[%clk 0:04:50.9]} 9. Nf3 {[%clk 0:04:50.7]} 9... e6 {[%clk 0:04:50.5]}
10. O-O {[%clk 0:04:50.1]} 10... Bd6 {[%clk 0:04:50]} 11. Bxd6 {[%clk
0:04:48.5]} 11... Qxd6 {[%clk 0:04:48.9]} 12. Re1 {[%clk 0:04:47.9]} 12... O-O
{[%clk 0:04:48.4]} 13. Ne5 {[%clk 0:04:47.3]} 13... b5 {[%clk 0:04:44.7]} 14.
Nxc6 {[%clk 0:04:45.9]} 14... Qxc6 {[%clk 0:04:43.6]} 15. Ne2 {[%clk 0:04:43.1]}
15... b4 {[%clk 0:04:41.8]} 16. c3 {[%clk 0:04:39]} 16... bxc3 {[%clk
0:04:40.4]} 17. bxc3 {[%clk 0:04:38.7]} 17... Rab8 {[%clk 0:04:36.3]} 18. Rb1
{[%clk 0:04:35.9]} 18... Ne4 {[%clk 0:04:35.2]} 19. Rxb8 {[%clk 0:04:33.7]}
19... Rxb8 {[%clk 0:04:33.5]} 20. Qc2 {[%clk 0:04:27.3]} 20... Nd6 {[%clk
0:04:32.1]} 21. Rb1 {[%clk 0:04:25.1]} 21... Rb5 {[%clk 0:04:27.6]} 22. h3
{[%clk 0:04:04.2]} 22... h6 {[%clk 0:04:22.6]} 23. Rxb5 {[%clk 0:03:49]} 23...
Qxb5 {[%clk 0:04:20.4]} 24. Ng3 {[%clk 0:03:35.6]} 24... Nc4 {[%clk 0:04:17.7]}
25. Qb3 {[%clk 0:03:26.8]} 25... Qxb3 {[%clk 0:04:13.5]} 26. axb3 {[%clk
0:03:26.7]} 26... Nd2 {[%clk 0:04:12.2]} 27. b4 {[%clk 0:03:22.3]} 27... Nb1
{[%clk 0:04:11.7]} 28. Ne2 {[%clk 0:03:20.8]} 28... Kf8 {[%clk 0:04:10.3]} 29.
Kf1 {[%clk 0:03:20]} 29... Ke7 {[%clk 0:04:09.8]} 30. Ke1 {[%clk 0:03:19.7]}
30... Kd6 {[%clk 0:04:09.5]} 31. Kd1 {[%clk 0:03:19.3]} 31... Kc6 {[%clk
0:04:08.2]} 32. Kc1 {[%clk 0:03:04.8]} 32... Na3 {[%clk 0:04:07.1]} 33. Ng3
{[%clk 0:03:02.2]} 33... g6 {[%clk 0:04:04.5]} 34. h4 {[%clk 0:03:00.4]} 34...
h5 {[%clk 0:04:02.9]} 35. Ne2 {[%clk 0:02:59.1]} 35... Nc4 {[%clk 0:03:57.7]}
36. f3 {[%clk 0:02:55.2]} 36... Kb5 {[%clk 0:03:53.2]} 37. g4 {[%clk 0:02:48.7]}
37... Ne3 {[%clk 0:03:45.5]} 38. Kd2 {[%clk 0:02:31.2]} 38... Nc4+ {[%clk
0:03:36.4]} 39. Kd3 {[%clk 0:02:26.5]} 39... Nb2+ {[%clk 0:03:34.7]} 40. Kd2
{[%clk 0:02:23.9]} 40... Nc4+ {[%clk 0:03:21.5]} 41. Ke1 {[%clk 0:02:15.8]}
41... Nd6 {[%clk 0:03:06]} 42. gxh5 {[%clk 0:02:06.1]} 42... gxh5 {[%clk
0:03:04.4]} 43. Nf4 {[%clk 0:02:05]} 43... Nf5 {[%clk 0:03:02.4]} 44. Nxh5
{[%clk 0:01:54.9]} 44... Nxh4 {[%clk 0:03:01.8]} 45. Ke2 {[%clk 0:01:49.5]}
45... Kc4 {[%clk 0:02:59.2]} 46. Kd2 {[%clk 0:01:45.9]} 46... Nxf3+ {[%clk
0:02:57.6]} 47. Kc2 {[%clk 0:01:45.3]} 47... Ng5 {[%clk 0:02:48.2]} 48. Ng3
{[%clk 0:01:39.7]} 48... Ne4 {[%clk 0:02:46.6]} 49. Ne2 {[%clk 0:01:36.1]} 49...
f6 {[%clk 0:02:44.1]} 50. Kb2 {[%clk 0:01:32.5]} 50... e5 {[%clk 0:02:40.8]} 51.
dxe5 {[%clk 0:01:27]} 51... fxe5 {[%clk 0:02:40.7]} 52. Kc2 {[%clk 0:01:21.4]}
52... d4 {[%clk 0:02:39.2]} 53. cxd4 {[%clk 0:01:15.9]} 53... exd4 {[%clk
0:02:39.1]} 54. Nxd4 {[%clk 0:01:12.8]} 54... Kxd4 {[%clk 0:02:33.3]} 55. Kb3
{[%clk 0:01:00.8]} 55... Nd6 {[%clk 0:02:29.8]} 56. Ka4 {[%clk 0:00:59.1]} 56...
Nb7 {[%clk 0:02:28]} 57. b5 {[%clk 0:00:57.7]} 57... a5 {[%clk 0:02:27.1]} 58.
b6 {[%clk 0:00:56.1]} 58... Kc5 {[%clk 0:02:25.6]} 0-1

[Event "Live Chess"]
[Site "Chess.com"]
[Date "2023.05.20"]
[Round "-"]
[White "LaupMiths"]
[Black "Ayursworld"]
[Result "1-0"]
[WhiteElo "1835"]
[BlackElo "1314"]
[TimeControl "300"]
[EndTime "11:31:51 PDT"]
[Termination "LaupMiths won by checkmate"]

1. d4 {[%clk 0:04:55.9]} 1... d5 {[%clk 0:04:57.4]} 2. c4 {[%clk 0:04:54]} 2...
dxc4 {[%clk 0:04:55.8]} 3. e4 {[%clk 0:04:49.1]} 3... e6 {[%clk 0:04:52]} 4.
Bxc4 {[%clk 0:04:47.2]} 4... Nf6 {[%clk 0:04:50.1]} 5. Nc3 {[%clk 0:04:45.2]}
5... Bb4 {[%clk 0:04:46.5]} 6. Qd3 {[%clk 0:04:38.8]} 6... O-O {[%clk
0:04:40.2]} 7. Bd2 {[%clk 0:04:37]} 7... Bxc3 {[%clk 0:04:23.9]} 8. bxc3 {[%clk
0:04:34.5]} 8... e5 {[%clk 0:04:22.5]} 9. dxe5 {[%clk 0:04:18.3]} 9... Qxd3
{[%clk 0:04:18.7]} 10. Bxd3 {[%clk 0:04:16.3]} 10... Ng4 {[%clk 0:04:14.8]} 11.
f4 {[%clk 0:04:08]} 11... Nc6 {[%clk 0:04:01.7]} 12. h3 {[%clk 0:04:03.9]} 12...
Nh6 {[%clk 0:03:58.9]} 13. Nf3 {[%clk 0:04:00.7]} 13... f5 {[%clk 0:03:34]} 14.
exf6 {[%clk 0:03:53.5]} 14... Rxf6 {[%clk 0:03:31.6]} 15. O-O {[%clk 0:03:49.5]}
15... Rd6 {[%clk 0:03:25.5]} 16. Bc4+ {[%clk 0:03:48.2]} 16... Kh8 {[%clk
0:03:22]} 17. Rad1 {[%clk 0:03:42.9]} 17... Be6 {[%clk 0:03:06.3]} 18. Bxe6
{[%clk 0:03:38.9]} 18... Rxe6 {[%clk 0:03:04.7]} 19. Ng5 {[%clk 0:03:36]} 19...
Re7 {[%clk 0:02:57.8]} 20. Bc1 {[%clk 0:03:30.1]} 20... Ree8 {[%clk 0:02:47.3]}
21. Rd7 {[%clk 0:03:19.7]} 21... Rac8 {[%clk 0:02:42.6]} 22. Rfd1 {[%clk
0:03:15.4]} 22... Rg8 {[%clk 0:02:39]} 23. c4 {[%clk 0:03:10.4]} 23... a6 {[%clk
0:02:37.6]} 24. Bb2 {[%clk 0:03:08.7]} 24... Nb4 {[%clk 0:02:24.8]} 25. Ne6
{[%clk 0:02:47.3]} 25... Rce8 {[%clk 0:01:49.6]} 26. f5 {[%clk 0:02:28.8]} 26...
Nxa2 {[%clk 0:01:41.1]} 27. Nxg7 {[%clk 0:02:07.5]} 27... Rxg7 {[%clk
0:01:32.7]} 28. Rxg7 {[%clk 0:02:02]} 28... Rg8 {[%clk 0:00:48.4]} 29. Rdd7
{[%clk 0:01:51.2]} 29... Rxg7 {[%clk 0:00:45.9]} 30. Rxg7 {[%clk 0:01:48.4]}
30... Nxf5 {[%clk 0:00:40.5]} 31. Rf7+ {[%clk 0:01:44]} 31... Kg8 {[%clk
0:00:38.3]} 32. Rxf5 {[%clk 0:01:42.1]} 32... Nb4 {[%clk 0:00:37.1]} 33. e5
{[%clk 0:01:35.8]} 33... Nd3 {[%clk 0:00:36]} 34. Bc3 {[%clk 0:01:30.9]} 34...
Nxe5 {[%clk 0:00:33]} 35. Rxe5 {[%clk 0:01:29.3]} 35... c5 {[%clk 0:00:31.7]}
36. Rxc5 {[%clk 0:01:28]} 36... b5 {[%clk 0:00:29.3]} 37. cxb5 {[%clk 0:01:26]}
37... axb5 {[%clk 0:00:28.2]} 38. Rxb5 {[%clk 0:01:25.6]} 38... Kf7 {[%clk
0:00:22.8]} 39. Rb6 {[%clk 0:01:24.4]} 39... h5 {[%clk 0:00:18.8]} 40. g4 {[%clk
0:01:23.3]} 40... hxg4 {[%clk 0:00:17.1]} 41. hxg4 {[%clk 0:01:23.2]} 41... Kg8
{[%clk 0:00:14.9]} 42. Kg2 {[%clk 0:01:20.9]} 42... Kf7 {[%clk 0:00:14.4]} 43.
g5 {[%clk 0:01:19.8]} 43... Kg8 {[%clk 0:00:13.4]} 44. Rb7 {[%clk 0:01:18.5]}
44... Kf8 {[%clk 0:00:12.2]} 45. g6 {[%clk 0:01:17.7]} 45... Kg8 {[%clk
0:00:11.3]} 46. Rb8# {[%clk 0:01:15.8]} 1-0

[Event "Live Chess"]
[Site "Chess.com"]
[Date "2023.05.20"]
[Round "-"]
[White "OleksiyJr1"]
[Black "jagbama"]
[Result "1-0"]
[WhiteElo "921"]
[BlackElo "1124"]
[TimeControl "300"]
[EndTime "11:32:03 PDT"]
[Termination "OleksiyJr1 won by resignation"]

1. e4 {[%clk 0:04:58.5]} 1... e5 {[%clk 0:04:58]} 2. Nf3 {[%clk 0:04:56.9]} 2...
Nc6 {[%clk 0:04:57.4]} 3. Bc4 {[%clk 0:04:55.6]} 3... Bc5 {[%clk 0:04:54.7]} 4.
Nc3 {[%clk 0:04:25.8]} 4... h6 {[%clk 0:04:52.2]} 5. d3 {[%clk 0:04:24.2]} 5...
Nf6 {[%clk 0:04:50.7]} 6. O-O {[%clk 0:04:21.6]} 6... d6 {[%clk 0:04:49.7]} 7.
h3 {[%clk 0:04:16.9]} 7... Nd4 {[%clk 0:04:45.4]} 8. Nxd4 {[%clk 0:04:12.9]}
8... Bxd4 {[%clk 0:04:44.8]} 9. Qe2 {[%clk 0:04:08.1]} 9... g6 {[%clk
0:04:37.1]} 10. Bd2 {[%clk 0:04:04.9]} 10... Nh5 {[%clk 0:04:34.7]} 11. Rab1
{[%clk 0:03:55.3]} 11... Bxc3 {[%clk 0:04:29.3]} 12. Bxc3 {[%clk 0:03:53.9]}
12... Nf4 {[%clk 0:04:28.1]} 13. Qf3 {[%clk 0:03:49.1]} 13... Qg5 {[%clk
0:04:23.3]} 14. Bd2 {[%clk 0:03:43.9]} 14... Bxh3 {[%clk 0:04:13.2]} 15. Bxf4
{[%clk 0:03:38.3]} 15... exf4 {[%clk 0:03:50.5]} 16. Qxh3 {[%clk 0:03:24.6]}
16... h5 {[%clk 0:03:49.6]} 17. g3 {[%clk 0:03:05.6]} 17... f3 {[%clk
0:03:43.9]} 18. Qh4 {[%clk 0:02:51.8]} 18... f6 {[%clk 0:03:34.3]} 19. Qxg5
{[%clk 0:02:48.4]} 19... fxg5 {[%clk 0:03:33.6]} 20. Rbe1 {[%clk 0:02:46.5]}
20... O-O-O {[%clk 0:03:32]} 21. e5 {[%clk 0:02:41.3]} 21... d5 {[%clk
0:03:29.9]} 22. Bb3 {[%clk 0:02:37]} 22... h4 {[%clk 0:03:28.5]} 23. e6 {[%clk
0:02:35.5]} 23... h3 {[%clk 0:03:26.4]} 24. Kh2 {[%clk 0:02:31.5]} 24... g4
{[%clk 0:03:24.5]} 25. Re5 {[%clk 0:02:22.7]} 25... c6 {[%clk 0:03:08.1]} 26.
Rg5 {[%clk 0:02:20.2]} 26... Rde8 {[%clk 0:03:05.5]} 27. Rxg6 {[%clk 0:02:15.4]}
27... Rhg8 {[%clk 0:03:04.1]} 28. Rxg8 {[%clk 0:02:05.1]} 28... Rxg8 {[%clk
0:03:03]} 29. Re1 {[%clk 0:02:03.9]} 29... Re8 {[%clk 0:03:01.5]} 30. Re5 {[%clk
0:01:59.8]} 30... Kc7 {[%clk 0:02:58.8]} 31. Rg5 {[%clk 0:01:57]} 31... Kd6
{[%clk 0:02:57.6]} 32. Rxg4 {[%clk 0:01:55.9]} 32... Rxe6 {[%clk 0:02:57]} 33.
Rf4 {[%clk 0:01:51.1]} 33... a5 {[%clk 0:02:49.5]} 34. a4 {[%clk 0:01:48.1]}
34... b6 {[%clk 0:02:43.9]} 35. Rxf3 {[%clk 0:01:46.5]} 35... Re2 {[%clk
0:02:41.5]} 36. Kxh3 {[%clk 0:01:40.4]} 36... c5 {[%clk 0:02:40.8]} 37. Rf6+
{[%clk 0:01:39.1]} 37... Ke5 {[%clk 0:02:39.6]} 38. Rf7 {[%clk 0:01:34]} 38...
c4 {[%clk 0:02:37.4]} 39. Re7+ {[%clk 0:01:33]} 1-0

[Event "Live Chess"]
[Site "Chess.com"]
[Date "2023.05.20"]
[Round "-"]
[White "martynstanley"]
[Black "Albul"]
[Result "0-1"]
[WhiteElo "1031"]
[BlackElo "2162"]
[TimeControl "300"]
[EndTime "11:32:09 PDT"]
[Termination "Albul won by checkmate"]

1. d4 {[%clk 0:04:59.5]} 1... f5 {[%clk 0:04:56.8]} 2. e3 {[%clk 0:04:58.6]}
2... Nf6 {[%clk 0:04:55.4]} 3. Bd3 {[%clk 0:04:57.8]} 3... d6 {[%clk 0:04:52.9]}
4. f4 {[%clk 0:04:55.8]} 4... g6 {[%clk 0:04:51.3]} 5. Nf3 {[%clk 0:04:54.8]}
5... Bg7 {[%clk 0:04:50.1]} 6. O-O {[%clk 0:04:54.1]} 6... O-O {[%clk
0:04:48.9]} 7. c3 {[%clk 0:04:53.5]} 7... c6 {[%clk 0:04:47.4]} 8. Nbd2 {[%clk
0:04:52.7]} 8... Qe8 {[%clk 0:04:46.2]} 9. e4 {[%clk 0:04:51.9]} 9... fxe4
{[%clk 0:04:41.6]} 10. Nxe4 {[%clk 0:04:50.8]} 10... Nxe4 {[%clk 0:04:40.5]} 11.
Bxe4 {[%clk 0:04:49.9]} 11... Nd7 {[%clk 0:04:38.4]} 12. Ng5 {[%clk 0:04:48.1]}
12... e5 {[%clk 0:04:26.1]} 13. fxe5 {[%clk 0:04:45.8]} 13... Rxf1+ {[%clk
0:04:23.4]} 14. Qxf1 {[%clk 0:04:44.6]} 14... dxe5 {[%clk 0:04:21]} 15. dxe5
{[%clk 0:04:40]} 15... Nxe5 {[%clk 0:04:17.2]} 16. Nf3 {[%clk 0:04:37.2]} 16...
Nxf3+ {[%clk 0:04:13.6]} 17. Qxf3 {[%clk 0:04:36.6]} 17... Be6 {[%clk
0:04:09.2]} 18. Bd2 {[%clk 0:04:35.5]} 18... Rd8 {[%clk 0:04:02.9]} 19. Rd1
{[%clk 0:04:31.4]} 19... Bxa2 {[%clk 0:03:55.4]} 20. Kf1 {[%clk 0:04:20.6]}
20... Bb3 {[%clk 0:03:50.3]} 21. Kg1 {[%clk 0:04:17.8]} 21... Bxd1 {[%clk
0:03:47.1]} 22. Qxd1 {[%clk 0:04:16.4]} 22... Qxe4 {[%clk 0:03:44.9]} 23. Qe1
{[%clk 0:04:13.5]} 23... Qxe1+ {[%clk 0:03:41.5]} 24. Bxe1 {[%clk 0:04:12.6]}
24... Rd1 {[%clk 0:03:41.1]} 25. Kf2 {[%clk 0:04:11.4]} 25... Rxe1 {[%clk
0:03:40.1]} 26. Kxe1 {[%clk 0:04:10.4]} 26... Kf7 {[%clk 0:03:39.8]} 27. h3
{[%clk 0:04:09.2]} 27... Ke6 {[%clk 0:03:39.2]} 28. Kd2 {[%clk 0:04:08.3]} 28...
Kd5 {[%clk 0:03:38.3]} 29. Kd3 {[%clk 0:04:07.7]} 29... b5 {[%clk 0:03:36.9]}
30. b3 {[%clk 0:04:06.6]} 30... c5 {[%clk 0:03:33.1]} 31. g3 {[%clk 0:04:04.4]}
31... c4+ {[%clk 0:03:31.3]} 32. Kc2 {[%clk 0:04:01.2]} 32... Be5 {[%clk
0:03:28.5]} 33. b4 {[%clk 0:04:00.1]} 33... Bxg3 {[%clk 0:03:26.5]} 34. Kd2
{[%clk 0:03:59.5]} 34... Ke4 {[%clk 0:03:25.6]} 35. Ke2 {[%clk 0:03:58.7]} 35...
Be5 {[%clk 0:03:24.9]} 36. Kd2 {[%clk 0:03:56.8]} 36... g5 {[%clk 0:03:23.7]}
37. Kc2 {[%clk 0:03:54.4]} 37... h5 {[%clk 0:03:23]} 38. Kd2 {[%clk 0:03:53.4]}
38... g4 {[%clk 0:03:21.7]} 39. hxg4 {[%clk 0:03:52.8]} 39... hxg4 {[%clk
0:03:21]} 40. Ke2 {[%clk 0:03:52.2]} 40... Bxc3 {[%clk 0:03:19.9]} 41. Kf2
{[%clk 0:03:49.5]} 41... Bxb4 {[%clk 0:03:18.9]} 42. Kg3 {[%clk 0:03:49.1]}
42... c3 {[%clk 0:03:18]} 43. Kxg4 {[%clk 0:03:48.6]} 43... c2 {[%clk
0:03:17.6]} 44. Kg5 {[%clk 0:03:48.3]} 44... c1=Q+ {[%clk 0:03:16.4]} 45. Kg6
{[%clk 0:03:48.1]} 45... Qf1 {[%clk 0:03:15.5]} 46. Kg7 {[%clk 0:03:47]} 46...
Bc3+ {[%clk 0:03:12.5]} 47. Kg6 {[%clk 0:03:45.9]} 47... Qf5+ {[%clk 0:03:09.8]}
48. Kh6 {[%clk 0:03:43.8]} 48... Qg4 {[%clk 0:03:08.1]} 49. Kh7 {[%clk
0:03:42.6]} 49... Qg7# {[%clk 0:03:07.7]} 0-1

[Event "Live Chess"]
[Site "Chess.com"]
[Date "2023.05.20"]
[Round "-"]
[White "MJMykh"]
[Black "AyannaTang"]
[Result "1-0"]
[WhiteElo "1034"]
[BlackElo "176"]
[TimeControl "300"]
[EndTime "11:32:11 PDT"]
[Termination "MJMykh won by checkmate"]

1. e4 {[%clk 0:04:59]} 1... e5 {[%clk 0:04:58.2]} 2. Nf3 {[%clk 0:04:57.7]} 2...
d5 {[%clk 0:04:48.1]} 3. exd5 {[%clk 0:04:54.7]} 3... e4 {[%clk 0:04:39.4]} 4.
Ng1 {[%clk 0:04:49.9]} 4... Qxd5 {[%clk 0:04:34.6]} 5. Nc3 {[%clk 0:04:49.3]}
5... Qe6 {[%clk 0:04:26.5]} 6. Nb5 {[%clk 0:04:44]} 6... Qb6 {[%clk 0:04:08.8]}
7. Nc3 {[%clk 0:04:37.9]} 7... Qc6 {[%clk 0:04:05.9]} 8. Bb5 {[%clk 0:04:33.6]}
8... Qxb5 {[%clk 0:03:50.9]} 9. Nxb5 {[%clk 0:04:31.6]} 9... Na6 {[%clk
0:03:43.2]} 10. Qe2 {[%clk 0:04:25.6]} 10... Bd7 {[%clk 0:03:37.3]} 11. Qxe4+
{[%clk 0:04:21.2]} 11... Be7 {[%clk 0:03:33.2]} 12. Qxb7 {[%clk 0:04:18.1]}
12... Rc8 {[%clk 0:03:15.9]} 13. Qxa6 {[%clk 0:04:11.4]} 13... Rd8 {[%clk
0:03:11.9]} 14. Nxc7+ {[%clk 0:04:09.7]} 14... Kf8 {[%clk 0:03:05.5]} 15. Qxa7
{[%clk 0:04:07.8]} 15... Nf6 {[%clk 0:03:03.2]} 16. Nf3 {[%clk 0:04:00.4]} 16...
Bd6 {[%clk 0:02:46.4]} 17. Nd4 {[%clk 0:03:53.5]} 17... Bxc7 {[%clk 0:02:42.6]}
18. Qxc7 {[%clk 0:03:51.7]} 18... Ke7 {[%clk 0:02:34.8]} 19. Qc5+ {[%clk
0:03:48.1]} 19... Ke8 {[%clk 0:02:27.8]} 20. O-O {[%clk 0:03:47]} 20... h5
{[%clk 0:02:21.7]} 21. Re1+ {[%clk 0:03:45.8]} 21... Be6 {[%clk 0:02:14.5]} 22.
Nxe6 {[%clk 0:03:44.5]} 22... fxe6 {[%clk 0:02:13.3]} 23. Rxe6+ {[%clk
0:03:42.9]} 23... Kd7 {[%clk 0:02:07.8]} 24. Qd6+ {[%clk 0:03:41.7]} 24... Kc8
{[%clk 0:01:52.8]} 25. Qc6+ {[%clk 0:03:38.5]} 25... Kb8 {[%clk 0:01:45]} 26.
Re7 {[%clk 0:03:31.1]} 26... Rh6 {[%clk 0:01:35.8]} 27. Qb7# {[%clk 0:03:29]}
1-0